Cogmind - Beta 14 @@@ ROGUE MODE // 2024.09.17 @ 01:24:46 Player: Brimble Result: Destroyed self via exploding Nuclear Reactor Performance ------------- Evolutions (0) 0 Regions Visited (1) 200 Robots Destroyed (26) 130 Value Destroyed (408) 408 Prototype IDs (0) 0 Alien Tech Used (0) 0 Bonus (0) 0 TOTAL SCORE: 738 Bonus ------- None Cogmind --------- Core Integrity 0/250 Matter 88/300 Energy 125/125 System Corruption 0% Temperature Cool (0) Movement Core (100) Ox1 Location -10/Materials Parts ------- > --- POWER (1) -------- Light Ion Engine > --- PROPULSION (2) --- (None) > --- UTILITY (2) ------ Sensor Array Launcher Guidance Computer > --- WEAPON (2) ------- Mini Grenade Launcher > --- INVENTORY (5) ---- Light Ion Engine Improved Terrain Scanner EM Pulse Gun Autogun Mini Grenade Launcher Peak State ------------ > --- POWER ------------ Light Ion Engine > --- PROPULSION ------- Light Treads Combat Airjet > --- UTILITY ---------- Sensor Array Launcher Guidance Computer > --- WEAPON ----------- Mini Grenade Launcher Mini Grenade Launcher > --- INVENTORY -------- Light Ion Engine Improved Terrain Scanner Seismic Detector EM Pulse Gun [Rating: 16] Favorites ----------- Power Ion Engine Engine Ion Engine Propulsion Light Treads Treads Light Treads Wheel Wheel Hover Unit Combat Airjet Utility Small Storage Unit Device Seismic Detector Storage Small Storage Unit Processor Launcher Guidance Computer Weapon Assault Rifle Energy Gun EM Pulse Gun Ballistic Gun Assault Rifle Launcher Mini Grenade Launcher Special Weapon Mining Laser Build | -11 -10 ------- Run | Yrd Mat Slots Evolved . | . . Power . | . . Propulsion . | . . Utility . | . . Weapon . | . . Parts Attached 33 | 23 10 Power 5 | 4 1 Engine 5 | 4 1 Core . | . . Reactor . | . . Propulsion 7 | 5 2 Treads 5 | 3 2 Leg . | . . Wheel 1 | 1 . Hover 1 | 1 . Flight . | . . Utility 9 | 6 3 Device 7 | 5 2 Storage 1 | 1 . Processor 1 | . 1 Hackware . | . . Protection . | . . Artifact . | . . Weapon 12 | 8 4 Energy Gun 3 | 2 1 Energy Cannon . | . . Ballistic Gun 3 | 3 . Ballistic Cannon . | . . Launcher 2 | . 2 Special Weapon 4 | 3 1 Impact Weapon . | . . Slashing Weapon . | . . Piercing Weapon . | . . Special Melee Weapon . | . . Unidentified Prototypes . | . . Parts Lost 7 | 3 4 Power 1 | 1 . Propulsion 2 | . 2 Utility . | . . Weapon 4 | 2 2 Highest Loss Streak 3 | 3 3 To Critical Strikes . | . . Average Slot Usage (%) 97 | . 97 Engine 14 | . 14 Treads 13 | . 13 Hover 12 | . 12 Device 24 | . 24 Processor 3 | . 3 Energy Gun 9 | . 9 Ballistic Gun 10 | . 10 Launcher 6 | . 6 Special Weapon 1 | . 1 Peak Build Rating 16 | 13 16 Average Rating 9 | 8 13 On Entrance 6 | . 13 Naked Turns . | . . Heaviest Build 15 | 15 9 Greatest Support 40 | 40 20 Greatest Overweight (x) 1 | 1 1 Average Overweight (x) . | . . Largest Inventory Capacity 8 | 8 5 Average Capacity 7 | 7 5 Most Carried 7 | 7 5 Average Carried 6 | 6 4 Final Capacity 5 | 5 5 Final Carried 5 | 4 5 Class Distribution -------------------- 96% | Scavenger-Mutant 3% | Mutant Dominant Class ---------------- Mutant | -10/Materials Resources | -11 -10 ----------- Run | Yrd Mat Matter Collected 717 | 604 113 Remotely . | . . Salvage Created 528 | 313 215 Parts 52 | 33 19 Haulers Intercepted 1 | . 1 Recyclers Shooed . | . . Parts Field Recycled . | . . Retrieved Matter . | . . Parts Self-Destructed . | . . Prevented . | . . Kills | -11 -10 ------- Run | Yrd Mat Combat Hostiles Destroyed 7 | 1 6 Melee 1 | 1 . Guns 2 | . 2 AOE 4 | . 4 Classes Destroyed 8 | 4 4 Worker 6 | 4 2 Builder 2 | . 2 Tunneler 7 | 7 . Hauler 1 | . 1 Recycler 1 | 1 . Watcher 2 | . 2 Grunt 6 | . 6 Demolisher 1 | 1 . Best Kill Streak 9 | 3 9 Combat Bots Only 4 | 1 4 Max Kills in Single Turn 3 | 1 3 Gunslinging . | . . Exploded 1 | . 1 Melee 1 | 1 . Uniques/NPCs Destroyed . | . . Combat | -11 -10 -------- Run | Yrd Mat Hostile Shots Fired 63 | 8 55 Missed 8 | . 8 Damage Taken 1027 | 341 686 Core 298 | 87 211 Absorbed by Shields . | . . Core Remaining (%) 65 | 65 . Volleys Fired 271 | 242 29 Largest 2 | 2 2 Hottest 200 | 200 120 Shots Fired 336 | 279 57 Gun 111 | 75 36 Cannon . | . . Launcher 18 | . 18 Special 207 | 204 3 Kinetic 89 | 69 20 Thermal 207 | 204 3 Explosive 18 | . 18 Electromagnetic 22 | 6 16 Robot Hit Streak 10 | 8 10 Robot Miss Streak 6 | 6 2 Penetration Max . | . . Secondary Targets 1 | . 1 Max Gunslinging Chain 1 | . 1 Shots Hit Robots 73 | 39 34 Core Hits 31 | 13 18 Critical Kills . | . . Critical Parts Destroyed . | . . Critical Strikes . | . . Melee Attacks . | . . Impact . | . . Slashing . | . . Piercing . | . . Sneak Attacks . | . . Combat Hostiles . | . . Follow-up Attacks . | . . Damage Inflicted 1686 | 554 1132 Guns 805 | 469 336 Cannons . | . . Explosions 766 | 27 739 Melee . | . . Ramming 19 | 10 9 Kinetic 584 | 408 176 Thermal 147 | 75 72 Explosive 715 | . 715 Electromagnetic 221 | 61 160 Impact . | . . Slashing . | . . Piercing . | . . Highest Corruption . | . . Average Corruption . | . . Corruption Purged . | . . Corruption Blocked . | . . Overload Shots . | . . Overflow Damage 124 | 21 103 Projectiles 21 | 21 . Explosions 103 | . 103 Melee . | . . Knockbacks . | . . Impact . | . . Kinetic . | . . Secondary . | . . Self-Inflicted Damage 139 | 4 135 Shots 2 | . 2 Rammed 5 | 4 1 Targets Rammed 5 | 4 1 Kicked . | . . Crushed . | . . Highest Temperature 300 | 300 200 Average Temperature 82 | 82 80 Received Heat Transfer 306 | . 306 Siege Activations . | . . Robots Corrupted . | . . Combat Hostiles . | . . Parts Fried 1 | . 1 Impact Corruptions . | . . Robots Melted . | . . Combat Hostiles . | . . Parts Melted . | . . Heat Transferred 300 | 150 150 Parts Sabotaged . | . . Parts Stolen . | . . Parts Stripped . | . . Power Chain Reactions 2 | 1 1 Alert | -11 -10 ------- Run | Yrd Mat Peak Influence 282 | 55 282 Initial 9 | . 9 Average 8 | 5 72 Maximum Alert Level 1 | . 1 Low Security (%) 99 | 100 95 Level 1 . | . 4 Level 2 . | . . Level 3 . | . . Level 4 . | . . Level 5 . | . . High Security . | . . Max Security . | . . Squads Dispatched . | . . Investigation . | . . Extermination . | . . Reinforcement . | . . Assault . | . . Garrison . | . . Intercept . | . . Searches Triggered . | . . Construction Impeded . | . . Haulers Reinforced . | . . Active Scanning Responses . | . . Cargo Convoy Interrupts . | . . Stealth | -11 -10 --------- Run | Yrd Mat Distress Signals . | . . Communications Jammed . | . . Distress Signals . | . . Times Spotted 13 | 1 12 Peak Tracking Total 4 | 1 4 Tactical Retreats . | . . Traps | -11 -10 ------- Run | Yrd Mat Traps Triggered . | . . Indirectly . | . . Trap Hack Attempts . | . . Triggered . | . . Disarmed . | . . Reprogrammed . | . . Reused . | . . Traps Extracted . | . . Installed . | . . Triggered . | . . Machines | -11 -10 ---------- Run | Yrd Mat Machines Disabled 3 | . 3 Max in Single Turn 1 | . 1 Machines Repaired . | . . Machines Dismantled . | . . Machines Sabotaged . | . . Overloaded Fab Kills . | . . Hacking | -11 -10 --------- Run | Yrd Mat Machines Accessed 1 | . 1 Terminals 1 | . 1 Fabricators . | . . Repair Stations . | . . Recycling Units . | . . Scanalyzers . | . . Garrison Access . | . . Total Hacks 2 | . 2 Successful 1 | . 1 Failed 1 | . 1 Catastrophic . | . . Database Lockouts . | . . Manual . | . . Terminals 2 | . 2 Fabricators . | . . Repair Stations . | . . Recycling Units . | . . Scanalyzers . | . . Garrison Access . | . . Terminal Hacks 1 | . 1 Hauler Manifests 1 | . 1 Fabricator Hacks . | . . Repair Station Hacks . | . . Recycling Unit Hacks . | . . Scanalyzer . | . . Garrison Access Hacks . | . . Unauthorized Hacks . | . . Terminals . | . . Fabricators . | . . Repair Stations . | . . Recycling Units . | . . Scanalyzers . | . . Garrison Access . | . . Data Cores Recovered . | . . Used . | . . Hacking Detections . | . . Full Trace Events . | . . Feedback Events . | . . Feedback Blocked . | . . Robot Schematics Acquired . | . . Robots Built . | . . Authchips . | . . Time . | . . Total Robot Build Rating . | . . Part Schematics Acquired . | . . Parts Built . | . . Authchips . | . . Time . | . . Total Part Build Rating . | . . Parts Repaired . | . . Time . | . . Parts Recycled . | . . Recycled Matter . | . . Retrieved Matter . | . . Retrieved Components . | . . Parts Scanalyzed . | . . Part Schematics Acquired . | . . Parts Damaged . | . . Bothacking | -11 -10 ------------ Run | Yrd Mat Used RIF Installer . | . . Robots Hacked . | . . Non-combat . | . . Combat . | . . Robot Hacks Applied . | . . Relay Couplers Released . | . . Fabnet Peak Effective % . | . . Robots Rewired . | . . Allies Hacked . | . . Hacks Repelled . | . . Allies | -11 -10 -------- Run | Yrd Mat Total Allies . | . . Largest Group . | . . Highest-Rated Group . | . . Highest-Rated Ally . | . . Total Orders . | . . Ally Attacks . | . . Total Damage . | . . Kills . | . . Allies Corrupted . | . . Allies Melted . | . . Intel | -11 -10 ------- Run | Yrd Mat Robot Analysis Total . | . . Derelict Logs Recovered . | . . Drone Launches . | . . Drone Recoveries . | . . Exploration | -11 -10 ------------- Run | Yrd Mat Turns Passed 6393 | 6046 347 Spaces Moved 3687 | 3478 209 Core 16 | 9 7 Treads 2122 | 2119 3 Legs . | . . Wheels . | . . Hover 1549 | 1350 199 Flight . | . . Fastest Speed 50 | 50 100 Average Speed 134 | 136 100 Slowest Speed 170 | 170 160 Overloaded Moves . | . . Propulsion Burnouts . | . . Robots Hopped . | . . Cave-ins Triggered . | . . Exploration Rate (%) 68 | 106 30 Regions Visited 1 Branch Regions . Pre-discovered Areas . | . . Known Exits Taken . | . . Unknown Exits Taken 1 | 1 . Scrap Searched . | . . Spaces Dug 58 | 58 . Terrain Destroyed 133 | 76 57 Melee . | . . Projectile 72 | 72 . AOE 61 | 4 57 Terrain Rammed . | . . Walls Destroyed . | . . Machines Disabled . | . . Actions | -11 -10 --------- Run | Yrd Mat Total 4361 | 4078 283 Wait 316 | 300 16 Move 3686 | 3477 209 Hop . | . . Pick Up 31 | 22 9 Fast Attach . | . . Attach 15 | 12 3 Detach 4 | 2 2 Swap 18 | 11 7 Drop 15 | 8 7 Fire 271 | 242 29 Melee . | . . Ram 5 | 4 1 Kick . | . . Crush . | . . Escape Stasis . | . . Rewire . | . . Trap . | . . Miscellaneous . | . . Route ------- -11/Scrapyard -10/Materials (discovered 2 exits: [*Mat] / [*Min]) History --------- Turn | Location | Event 8 | -11/Scrapyard | Discovered new exit (range 16) 4205 | -11/Scrapyard | Assembled infested the area 4986 | -11/Scrapyard | Lost 3 parts (1p2w) 6047 | -11/Scrapyard | Entered Materials 6075 | -10/Materials | Build established: Scavenger-Mutant 6090 | -10/Materials | Discovered new exit (range 9) 6154 | -10/Materials | Core integrity fell below 50% 6347 | -10/Materials | Discovered new exit (range 8) 6378 | -10/Materials | Core integrity fell below 20% 6394 | -10/Materials | Destroyed self via exploding Nuclear Reactor Last Messages --------------- 06372_ The unstable cave ceiling collapses. 06372_ K-01 Serf collects debris. 06376_ Lgt. Treads destroyed. 06378_ The unstable cave ceiling collapses. 06378_ K-01 Serf destroyed. 06378_ G-47 Trooper destroyed. 06378_ K-01 Serf destroyed. 06380_ The unstable cave ceiling collapses. 06381_ G-34 Mercenary destroyed. 06384_ Destroyed Hover Unit. 06384_ Destroyed Lgt. Ion Engine. 06386_ The unstable cave ceiling collapses. 06387_ W-16 Scout destroyed. 06387_ U-05 Engineer destroyed. 06387_ Destroyed Wheel. 06387_ U-05 Engineer destroyed. 06389_ The unstable cave ceiling collapses. 06394_ Nuclear Reactor explodes. 06394_ Mni. Grenade Launcher destroyed. 06394_ Destroyed Mni. Grenade Launcher. Map ----- +----------------------------------------------------+ | ???????#????????????????? ?? ?###?## #??????????? | | ???????????"??"??#???###############+#######???? | | ??????????? ????+ + ! #????"? | | ???????????#######?#?######### # """ #??? ?? | | ########### ##### # # """ #### ?? | | # """ !==# +??? | | < + !==# #? ? | | ? # """ !==# #### | | ????????#### ##### "###### """ # | | ??#######??## ^ ##???#" ! "#???## """ # | | ??# ##### #????#"""""""#???## + | | ??# ! #????#########??###############+## | | ?## #????????????#????## ???? ??# | | ??# #???#????? ? ?? ?? ?????????# | | ??# ##+######??????????????? ? ??? ?????# " | | ??## ## ##?????#??????????? ????? ??##*! T | | ???# ?# #?????????????"? ??????? ????# * " | | ???# ?# #?????????#??????? ??"????? ?#!* | | ???# ## #????????????????? ?? ???? ?###### | | ???# + #?????????????? ??????????????#???? | | ???# # #??????#??#??????????#???????????#? | | ???# ##+###################+##?#??????????????? | | ???# =! +! # +?? #???????????# | | ???# #### # # +???????????? | | ???# #??# #???????????# | | ???# #??#][!![[# @ # #???#?????#?? | | ???# #??# !!! [ *! # #???????????? | | """ ##?###### # ??????????? | | R" #??#### #?????????? ? | | """ ###????? ?????? | | * = ###?????????????? | | [ ^ ??????????? | | ############### # # ^ #????????? | | ????????????? #### +????????? | | ????????????? < ###???? ?????????? | | ???????????? "T #????????????????? | | ???????????# "" #####????????????????? | | ???????????# ??? ?" #????????????????????? | | ???????????#?????? # ? ]#????????????????????? | | ?????????????????????#??#####????????????????????? | | ?????????????????????????????????????????????????? | | ?????????????????????????????????????????????????? | | ?????????????????????????????????????????????????? | | ?????????????????????????????????????????????????? | | ?????????????????????????????????????????????????? | | | | | | | | | | | +----------------------------------------------------+ Best States ------------- Heat Dissipation 25 Energy Generation 10 Energy Capacity 250 Matter Stores 300 Matter Capacity 300 Sight Range 16 Robot Scan Range 14 Terrain Scan Range 16 Terrain Scan Density 10 Evasion (%) 50 Launcher Accuracy 20 Recoil Reduction 2 Item Schematics ----------------- None Robot Schematics ------------------ None Fabricated ------------ Nothing Alien Tech Used ----------------- None Achievements -------------- Curiosity Killed The Cat Challenges ------------ None Game ------ Seed OmegaCorruptionBeamcaster Manual? 0 Play Time 00:44:49 Cumulative 13.3 hours Start 2024.09.17 @ 00:39:28 End 2024.09.17 @ 01:24:46 Sessions 1 Manual Loads 0 Difficulty Rogue Special Mode None Game No. 8 Rogue 8 Adventurer 0 Explorer 0 Win Type - Total 0 Types 0/0/0/0/0/0/0/0/0 Lore% 9 Gallery% 16 Achievement% 18 Wizard Run 0 Options --------- Layout 1 ASCII 0 Keyboard 0 Movement Numpad Keybinds 0 Fullscreen 1 Font 24/Smallcaps Map View 50x40 Zoom Use 0% Tactical HUD 1 Map Filters NONE Filters NONE Steam 1 RUN: 60beabff-b18f-465c-a593-7db35d697ab3